bitfinex/quotes_ETHUSD_20240821
["timestamp","ask_amount","ask_price","bid_price","bid_amount"]
[1724234615460,0.60691722,2584.0,2583.8,0.15484112]
[1724234615825,0.60691722,2584.0,2583.7,2.2778]
[1724234616220,0.60691722,2584.0,2583.8,0.15484112]
[1724234616627,0.60691722,2584.0,2583.7,2.2778]
[1724234617163,0.60691722,2584.0,2583.8,0.15484112]
[1724234617361,0.60691722,2584.0,2583.7,2.2778]
[1724234617723,0.60691722,2584.0,2583.8,0.1547814]
[1724234617923,0.60691722,2584.0,2583.7,2.2778]
[1724234618233,0.60691722,2584.0,2583.8,0.1547814]
[1724234618652,0.60691722,2584.0,2583.7,2.2778]
[1724234618833,0.89999894,2584.0,2583.3,3.0654]
[1724234619024,0.89999894,2584.0,2583.8,0.15467048]
[1724234619025,0.60691722,2584.0,2583.8,0.15467048]
[1724234619226,0.60691722,2584.0,2583.6,2.3127]
[1724234619656,0.60691722,2584.0,2583.7,0.15349496]
[1724234621234,0.60691722,2584.0,2583.7,0.15196402]
[1724234626508,0.60691722,2584.0,2583.8,2.3274]
[1724234626707,9.6035,2584.5,2583.8,2.6453364]
[1724234626916,9.6035,2584.5,2583.9,0.15339654]
[1724234627213,0.60684702,2584.2,2583.8,2.3274]
[1724234627706,0.60684702,2584.2,2583.9,0.15339654]
[1724234628212,0.60684702,2584.2,2583.8,2.3274]
[1724234628697,0.60684702,2584.2,2583.9,0.15339654]
[1724234629102,0.60684702,2584.2,2583.8,2.3274]
[1724234629538,0.60684702,2584.2,2583.9,0.15339654]
[1724234630040,0.60684702,2584.2,2583.6,3.1425]
[1724234630230,0.60684702,2584.2,2583.6,3.45675]
[1724234630445,1.685,2584.1,2583.7,0.15340127]
[1724234631020,1.685,2584.1,2583.6,3.45675]
[1724234631545,1.685,2584.1,2583.7,0.15340127]
[1724234632039,1.685,2584.1,2583.6,3.45675]
[1724234632219,1.685,2584.1,2583.8,0.15339891]
[1724234632421,1.685,2584.1,2583.7,0.49907627]
[1724234632622,1.685,2584.1,2583.9,0.15339654]
[1724234632821,1.685,2584.1,2583.7,0.345675]
[1724234633041,1.685,2584.1,2584.0,0.15339417]
[1724234633240,1.685,2584.1,2583.7,0.345675]
[1724234633565,1.685,2584.1,2584.0,0.15339417]
[1724234633739,1.685,2584.1,2583.6,3.1425]
[1724234633940,1.685,2584.1,2584.0,0.15339417]
[1724234634122,1.685,2584.1,2583.6,3.1425]
[1724234634326,1.685,2584.1,2584.0,0.15318094]
[1724234634562,1.685,2584.1,2583.6,3.1425]
[1724234634761,1.685,2584.1,2584.0,0.15318094]
[1724234634965,1.685,2584.1,2583.6,3.1425]
[1724234635263,1.685,2584.1,2583.7,0.15318804]
[1724234640427,0.60684702,2584.2,2583.7,0.15318804]
[1724234640732,2.3214,2584.9,2584.4,0.7]
[1724234640935,2.3214,2585.2,2584.7,0.7]
[1724234641272,2.4586,2585.4,2585.0,0.7]
[1724234641868,2.4586,2585.4,2585.1,0.15243623]
[1724234646351,6.18267,2585.2,2585.1,0.15243623]
[1724234646679,6.18267,2585.2,2584.4,0.7]
[1724234646875,1.409082,2585.1,2584.4,0.7]
[1724234650103,1.409082,2585.1,2584.5,0.15092437]
[1724234653792,2.3145,2585.2,2584.5,0.15092437]
[1724234653968,2.3145,2585.2,2584.5,2.55282437]
[1724234655327,2.3145,2585.2,2584.5,0.15092437]
[1724234655509,3.86835,2585.1,2584.5,0.15092437]
[1724234655825,2.3489,2584.9,2584.5,0.15092437]
[1724234655981,2.3489,2584.9,2584.1,0.7]
[1724234656313,2.3489,2584.9,2584.2,0.15104226]
[1724234656733,2.3019,2584.9,2584.2,0.15104226]
[1724234656889,2.3019,2584.6,2584.2,0.15104226]
[1724234657222,0.61709,2584.5,2584.0,0.5]
[1724234657823,4.48635,2584.5,2584.0,0.5]
[1724234659008,2.425,2584.3,2584.0,0.5]
[1724234659409,3.86968,2584.2,2584.0,0.5]
[1724234659684,2.425,2584.3,2584.0,0.5]
[1724234659685,0.629468,2584.1,2584.0,0.5]
[1724234659894,6.29457,2584.3,2584.0,0.5]
[1724234665329,3.86981,2584.1,2584.0,0.5]
[1724234665531,13.03532,2584.1,2584.0,0.5]
[1724234665694,15.129808,2584.1,2584.0,0.5]
[1724234666975,5.2957,2584.1,2584.0,0.5]
[1724234667156,2.2957,2584.1,2584.0,0.5]
[1724234667330,6.16551,2584.1,2584.0,0.65264144]
[1724234667527,6.16551,2584.1,2584.0,0.5]
[1724234667528,9.16551,2584.1,2584.0,0.5]
[1724234670471,13.03532,2584.1,2584.0,0.5]
[1724234670672,14.338852,2584.1,2584.0,0.5]
[1724234674394,8.173342,2584.1,2584.0,0.5]
[1724234674596,4.303532,2584.1,2584.0,0.5]
[1724234676096,8.173342,2584.1,2584.0,0.5]
[1724234676998,10.532842,2584.1,2584.0,0.5]
[1724234682690,12.217842,2584.1,2584.0,0.5]
[1724234683531,16.087652,2584.1,2584.0,0.5]
[1724234684023,12.217842,2584.1,2584.0,0.5]
[1724234685588,16.087652,2584.1,2584.0,0.5]
[1724234686410,16.49033182,2584.1,2584.0,0.5]
[1724234687825,16.087652,2584.1,2584.0,0.5]
[1724234689027,10.532842,2584.1,2584.0,0.5]
[1724234689213,12.217842,2584.1,2584.0,0.5]
[1724234693001,16.087652,2584.1,2584.0,0.5]
[1724234693200,12.217842,2584.1,2584.0,0.5]
[1724234693427,16.087652,2584.1,2584.0,0.5]
[1724234696799,12.217842,2584.1,2584.0,0.5]
[1724234697914,16.087652,2584.1,2584.0,0.5]
[1724234698286,12.217842,2584.1,2584.0,0.5]
[1724234698701,16.087652,2584.1,2584.0,0.5]
[1724234698909,12.217842,2584.1,2584.0,0.5]
[1724234699103,16.087652,2584.1,2584.0,0.5]
[1724234699342,12.217842,2584.1,2584.0,0.5]
[1724234699505,16.087652,2584.1,2584.0,0.5]
[1724234699703,12.217842,2584.1,2584.0,0.5]
[1724234701736,16.087652,2584.1,2584.0,0.5]
[1724234702421,12.217842,2584.1,2584.0,0.5]
[1724234702644,16.087652,2584.1,2584.0,0.5]
[1724234703003,12.217842,2584.1,2584.0,0.5]
[1724234703208,3.0,2584.1,2584.0,0.5]
[1724234704641,6.86981,2584.1,2584.0,0.5]
[1724234705254,8.55481,2584.1,2584.0,0.5]
[1724234706953,9.16175105,2584.1,2584.0,0.5]
[1724234709977,5.29194105,2584.1,2584.0,0.5]
[1724234710675,9.16175105,2584.1,2584.0,0.5]
[1724234711083,3.60694105,2584.1,2584.0,0.5]
[1724234711282,0.60694105,2584.1,2584.0,2.9892]
[1724234711683,0.60694105,2584.1,2584.0,3.14264317]
[1724234711868,0.60694105,2584.1,2584.0,3.30346432]
[1724234712187,0.60694105,2584.1,2584.0,3.45679658]
[1724234713296,0.60694105,2584.1,2584.0,3.14253226]
[1724234721512,0.60694105,2584.1,2584.0,2.9892]
[1724234721667,0.60694105,2584.1,2584.0,3.14253226]
[1724234725929,0.60694105,2584.1,2584.0,0.65333226]
[1724234726280,0.60694105,2584.1,2584.0,2.99303226]
[1724234726483,0.60694105,2584.1,2584.0,3.36233549]
[1724234727080,0.60694105,2584.1,2584.0,5.04733549]
[1724234727282,1.685,2584.8,2584.3,2.2801]
[1724234727482,2.4057,2585.1,2584.5,0.7]
[1724234727724,1.685,2585.0,2584.6,2.2801]
[1724234728028,1.685,2585.2,2584.6,2.2801]
[1724234728386,2.4958,2585.5,2584.9,2.3905]
[1724234728589,6.70615242,2585.7,2584.9,2.46786611]
[1724234728590,1.685,2585.7,2584.9,2.46786611]
[1724234728784,1.685,2585.7,2585.0,0.63780197]
[1724234728987,2.4958,2585.8,2585.1,0.7]
[1724234729195,1.685,2585.7,2585.2,2.3905]
[1724234729428,1.685,2585.7,2585.2,2.54269518]
[1724234731117,7.31152308,2586.5,2585.5,0.7]
[1724234731338,1.685,2586.3,2585.6,2.44294155]
[1724234731892,1.685,2586.3,2585.7,0.2959272]
[1724234733301,1.685,2586.3,2585.6,2.3656]
[1724234733635,1.685,2586.3,2585.6,2.84066]
[1724234733937,1.685,2586.3,2585.7,0.29569718]
[1724234734655,3.0,2586.4,2585.7,0.29569718]
[1724234734933,3.0,2586.4,2585.6,2.84066]
[1724234735140,3.0,2586.4,2585.8,0.29368918]
[1724234735319,4.4163627,2586.4,2585.6,2.84066]
[1724234735724,4.4163627,2586.4,2585.7,0.29369718]
[1724234735910,4.4163627,2586.4,2585.6,2.84066]
[1724234736234,4.4163627,2586.4,2585.7,0.29369718]
[1724234736638,8.2827427,2586.4,2585.6,2.84066]
[1724234737135,8.2827427,2586.4,2585.7,0.29342985]
[1724234737510,8.2827427,2586.4,2585.6,2.84066]
[1724234737717,8.2827427,2586.4,2585.7,0.64749585]
[1724234738106,8.2827427,2586.4,2585.7,0.354066]
[1724234738307,8.2827427,2586.4,2585.8,0.29342186]
[1724234740410,6.86638,2586.4,2585.8,0.29342186]
[1724234741621,3.0,2586.4,2585.8,0.29342186]
[1724234741883,3.86643,2586.4,2585.9,2.3543]
[1724234743719,3.60658066,2586.5,2585.9,2.3543]
[1724234744048,0.60658066,2586.5,2585.9,2.3543]
[1724234744250,3.0,2586.6,2586.0,0.30543]
[1724234744750,6.86608,2586.6,2586.0,0.30543]
[1724234750098,6.86608,2586.6,2585.8,0.7]
[1724234750099,6.86608,2586.6,2586.1,2.3794]
[1724234751955,10.73227,2586.6,2586.1,2.3794]
[1724234752358,6.86608,2586.6,2586.1,2.3794]
[1724234752562,3.0,2586.6,2586.1,2.3794]
[1724234752871,3.86559,2587.0,2586.2,2.3875]
[1724234753029,3.86527,2587.2,2586.5,2.3875]
[1724234753223,0.60639212,2587.3,2586.5,2.3875]
[1724234753465,0.60639212,2587.3,2586.7,0.7]
[1724234753776,0.60639212,2587.3,2586.8,0.2926265]
[1724234753964,0.60639212,2587.3,2586.7,0.7]
[1724234754164,1.05352033,2587.3,2586.9,0.29261851]
[1724234754373,1.05352033,2587.3,2586.7,0.7]
[1724234755134,3.86533,2587.1,2586.6,2.3875]
[1724234755438,3.86527,2587.2,2586.6,2.3875]
[1724234756546,3.8655,2587.0,2586.6,2.3875]
[1724234757031,3.86533,2587.1,2586.6,2.3875]
[1724234757236,3.86527,2587.2,2586.6,2.3875]
[1724234757871,3.60639212,2587.3,2586.6,2.62625]
[1724234758376,3.86518,2587.2,2586.6,2.62625]
[1724234758577,3.86518,2587.2,2586.6,2.3875]
[1724234758750,3.60639212,2587.3,2586.6,2.3875]
[1724234758934,7.47145212,2587.3,2586.7,0.29218324]
[1724234760277,3.8652,2587.2,2586.7,0.29218324]
[1724234760593,3.86536,2587.1,2586.7,0.29218324]
[1724234760752,1.13369521,2587.1,2586.7,0.29218324]
[1724234761392,3.86519,2587.2,2586.7,0.29218324]
[1724234761596,3.60639212,2587.3,2586.7,0.29218324]
[1724234761797,7.47145212,2587.3,2586.7,0.29218324]
[1724234761964,6.86506,2587.3,2586.7,0.29218324]
[1724234763404,3.0,2587.3,2586.8,0.7]
[1724234763564,3.0,2587.4,2586.8,0.99174104]
[1724234763763,3.0,2587.4,2586.8,0.7]
[1724234764163,3.0,2587.4,2586.9,2.3613]
[1724234764733,6.86489,2587.4,2586.9,2.3613]
[1724234765005,6.86489,2587.4,2587.0,0.29172508]
[1724234767286,3.86505,2587.3,2587.0,0.29172508]
[1724234767477,3.0,2587.2,2587.0,0.29172508]
[1724234767674,3.86533,2587.1,2587.0,0.29172508]
[1724234767881,3.86549,2587.0,2586.7,2.4709]
[1724234768770,3.86526,2587.2,2586.7,2.4709]
[1724234769406,3.86526,2587.2,2586.7,2.78799]
[1724234769814,6.86508,2587.3,2586.7,2.78799]
[1724234770016,3.0,2587.3,2586.7,2.78799]
[1724234770886,3.0,2587.3,2586.9,2.321]
[1724234771111,3.0,2587.4,2586.9,2.321]
[1724234771307,3.0,2587.4,2586.9,2.654809]
[1724234771712,6.86474,2587.5,2586.9,2.654809]
[1724234772010,3.86489,2587.4,2586.9,2.654809]
[1724234772184,3.86544,2587.1,2586.5,2.3935]
[1724234772714,3.86544,2587.1,2586.6,0.29175701]
[1724234773499,3.86519,2587.2,2586.6,0.29175701]
[1724234773710,7.7305,2587.2,2586.6,0.29175701]
[1724234774005,3.86519,2587.2,2586.6,0.29175701]
[1724234774209,3.86509,2587.3,2586.7,2.3845]
[1724234774416,3.86509,2587.3,2586.4,0.7]
[1724234774417,3.86548,2587.0,2586.4,2.3845]
[1724234774571,3.86548,2587.0,2586.8,0.29160488]
[1724234774769,3.86548,2587.0,2586.4,2.3845]
[1724234774770,5.276649,2587.0,2586.4,2.3845]
[1724234775011,3.86548,2587.0,2586.4,2.3845]
[1724234775323,3.86548,2587.0,2586.5,0.2915352]
[1724234777120,7.90237,2587.1,2586.5,0.2915352]
[1724234779809,3.86549,2587.0,2586.5,0.2915352]
[1724234780413,1.681,2586.8,2586.5,0.2915352]
[1724234780620,1.681,2586.8,2586.5,0.55913872]
[1724234780938,1.681,2586.8,2586.5,0.2915352]
[1724234784041,3.0,2587.1,2586.5,0.2915352]
[1724234785901,1.681,2587.1,2586.7,0.55623191]
[1724234786902,1.681,2587.1,2586.8,2.376]
[1724234790039,5.4951,2587.3,2586.7,0.264585]
[1724234790238,5.4951,2587.3,2586.6,2.2684]
[1724234790476,5.4951,2587.3,2586.8,0.29176659]
[1724234790477,9.36017,2587.3,2586.8,0.29176659]
[1724234790656,9.36017,2587.3,2586.7,0.29177458]
[1724234790852,9.36017,2587.3,2586.6,2.2684]
[1724234791009,9.36017,2587.3,2586.8,0.29176659]
[1724234791010,1.681,2586.9,2586.8,0.29176659]
[1724234791209,1.681,2586.9,2586.7,0.29177458]
[1724234791407,1.681,2586.9,2586.6,2.2684]
[1724234791608,1.681,2586.9,2586.8,0.29176659]
[1724234791854,1.681,2586.9,2586.7,0.29177458]
[1724234792021,1.681,2586.9,2586.7,0.22684]
[1724234792217,1.681,2586.9,2586.8,0.29176659]
[1724234792758,1.681,2586.9,2586.7,0.22684]
[1724234793102,1.681,2586.9,2586.8,0.29176659]
[1724234793546,1.681,2586.9,2586.7,0.22684]
[1724234793857,1.681,2586.9,2586.8,0.29176659]
[1724234794308,3.0,2587.3,2586.8,0.97870066]
[1724234794508,1.681,2587.1,2586.8,0.97870066]
[1724234801772,1.681,2587.1,2586.9,2.4958]
[1724234806453,2.2585,2587.0,2586.2,2.3261]
[1724234806664,3.86618,2586.6,2586.2,2.3261]
[1724234807020,7.73179,2586.8,2586.2,2.3261]
[1724234807220,7.73179,2586.8,2586.2,3.36971]
[1724234807559,3.86594,2586.7,2586.2,3.36971]
[1724234807716,1.681,2586.5,2586.2,3.36971]
[1724234808222,6.12407,2587.0,2586.2,3.36971]
[1724234808422,6.12407,2587.0,2586.3,0.336971]
[1724234808423,3.0,2586.9,2586.3,0.336971]
[1724234808924,1.681,2586.8,2586.3,0.336971]
[1724234809319,1.681,2586.6,2586.2,3.36971]
[1724234810455,6.86563,2586.9,2586.2,3.36971]
[1724234812157,3.0,2586.9,2586.2,3.36971]
[1724234812358,3.0,2586.9,2586.2,2.3261]
[1724234812604,9.124,2587.0,2586.2,2.3261]
[1724234813159,3.0,2587.0,2586.2,2.3261]
[1724234813486,6.86548,2587.0,2586.3,2.53681]
[1724234813974,3.0,2587.0,2586.3,2.53681]
[1724234814363,6.86552,2587.0,2586.3,2.53681]
[1724234814793,3.0,2587.0,2586.3,2.53681]
[1724234814997,3.0,2587.0,2586.4,0.27963843]
[1724234815182,3.0,2587.0,2586.4,0.56128327]
[1724234815485,3.0,2587.0,2586.4,0.28164484]
[1724234815689,6.86551,2587.0,2586.4,0.28164484]
[1724234816965,6.34971,2586.9,2586.3,2.3042]
[1724234817413,6.34971,2586.9,2586.4,0.27963843]
[1724234817790,6.34971,2586.9,2586.3,2.3042]
[1724234818203,6.34971,2586.9,2586.4,0.27963843]
[1724234818579,6.34971,2586.9,2586.3,2.3042]
[1724234818918,3.0,2587.0,2586.4,0.51005843]
[1724234819223,3.0,2587.0,2586.4,0.23042]
[1724234820348,10.46262069,2587.3,2586.5,2.4327]
[1724234820485,3.86535,2587.1,2586.5,2.4327]
[1724234820841,3.86535,2587.1,2586.5,2.769012]
[1724234821140,7.036,2587.2,2586.5,2.769012]
[1724234821282,3.0,2587.2,2586.5,2.769012]
[1724234821476,6.86519,2587.2,2586.5,2.769012]
[1724234822696,3.0,2587.2,2586.5,2.769012]
[1724234822923,3.0,2587.2,2586.6,0.9769012]
[1724234823074,3.0,2587.2,2586.7,2.3827]
[1724234824200,7.27,2587.4,2586.7,2.3827]
[1724234824714,7.90062,2587.6,2586.9,2.2857]
[1724234824953,7.90062,2587.6,2587.0,0.2564651]
[1724234825618,3.0,2587.5,2587.0,0.2564651]
[1724234825782,6.86475,2587.5,2586.9,2.2857]
[1724234826203,3.0,2587.5,2586.9,2.2857]
[1724234828743,3.0,2587.5,2586.9,2.9857]
[1724234829053,3.0,2587.5,2587.0,2.4923]
[1724234829215,10.10873405,2587.8,2587.1,0.07730427]
[1724234829398,2.4949,2587.9,2587.2,3.1923]
[1724234829592,6.35908,2587.9,2587.2,3.1923]
[1724234830048,2.4949,2587.9,2587.2,3.1923]
[1724234830530,5.4949,2587.9,2587.2,3.1923]
[1724234831814,9.35904,2587.9,2587.2,3.1923]
[1724234832017,5.4949,2587.9,2587.3,0.31923]
[1724234832396,1.681,2587.5,2587.3,0.31923]
[1724234833236,1.681,2587.5,2587.2,2.4923]
[1724234833551,1.681,2587.3,2587.2,2.4923]
[1724234833852,1.681,2587.3,2587.2,3.1923]
[1724234835473,1.681,2587.3,2587.2,2.4923]
[1724234835600,1.681,2587.3,2587.0,2.4625]
[1724234835794,2.4008,2587.5,2587.0,2.77875]
[1724234835795,1.681,2587.1,2587.0,2.77875]
[1724234836056,1.681,2587.1,2586.8,2.4625]
[1724234836310,3.86518,2587.2,2586.6,3.1625]
[1724234836478,3.86503,2587.3,2586.6,3.1625]
[1724234836479,1.681,2586.9,2586.6,3.1625]
[1724234836615,1.681,2586.9,2586.7,0.31625]
[1724234839559,2.2518,2586.8,2586.7,0.31625]
[1724234839763,2.2518,2586.8,2585.9,3.1622]
[1724234839764,3.86593,2586.7,2585.9,3.1622]
[1724234839941,2.2518,2586.8,2585.9,3.1622]
[1724234839942,1.681,2586.3,2585.9,3.1622]
[1724234840154,1.681,2586.1,2586.0,0.24323141]
[1724234840460,6.11762,2586.8,2586.0,0.55945141]
[1724234840461,1.681,2586.3,2586.0,0.55945141]
[1724234840756,1.681,2586.3,2585.9,3.1622]
[1724234841459,1.681,2586.4,2585.9,3.1622]
[1724234841823,1.681,2586.4,2586.0,0.23444677]
[1724234842058,1.681,2586.4,2586.0,0.57411145]
[1724234842434,2.2518,2586.8,2586.0,0.57411145]
[1724234842630,5.2518,2586.8,2586.0,0.33966468]
[1724234843552,4.036,2587.0,2586.0,0.33966468]
[1724234843553,6.31029,2587.0,2586.1,2.3348]
[1724234843881,3.0,2586.9,2586.2,0.26744647]
[1724234844176,3.0,2586.9,2586.3,0.7]
[1724234845155,3.8658,2586.8,2586.3,0.7]
[1724234845366,6.86563,2586.9,2586.3,0.7]
[1724234845572,8.586814,2586.9,2586.3,0.7]
[1724234846070,12.452534,2586.9,2586.3,0.7]
[1724234846665,3.86579,2586.8,2586.3,0.7]
[1724234849637,6.86563,2586.9,2586.3,0.7]
[1724234849858,10.73136,2586.9,2586.3,0.7]
[1724234852167,3.86579,2586.8,2586.3,0.7]
[1724234853474,2.3392,2586.6,2585.9,0.7]
[1724234853772,3.86649,2586.4,2586.0,0.23481124]
[1724234854144,3.86649,2586.4,2585.9,0.7]
[1724234854373,3.86644,2586.4,2585.9,1.00015]
[1724234854671,3.86622,2586.5,2585.9,1.00015]
[1724234857652,10.20944234,2586.6,2585.9,1.00015]
[1724234858458,14.07562234,2586.6,2585.9,1.00015]
[1724234858663,3.86624,2586.5,2585.9,1.00015]
[1724234859682,6.34325234,2586.6,2585.9,1.00015]
[1724234860051,10.20938234,2586.6,2585.9,1.00015]
[1724234860554,3.86622,2586.5,2585.9,1.00015]
[1724234860752,3.86622,2586.5,2585.9,0.7]
[1724234861276,6.34325234,2586.6,2585.9,0.7]
[1724234862445,1.682,2586.2,2585.9,0.7]
[1724234862787,1.682,2586.2,2586.0,0.23481124]
[1724234863157,9.6813,2586.8,2586.1,2.4838]
[1724234863347,3.0,2586.7,2586.2,0.27186112]
[1724234863667,3.0,2586.7,2586.3,0.23478727]
[1724234863869,3.0,2586.7,2585.9,3.1956]
[1724234863870,1.682,2586.4,2585.9,3.1956]
[1724234864081,3.86622,2586.6,2586.0,0.23481124]
[1724234864082,1.682,2586.2,2586.0,0.23481124]
[1724234864388,1.682,2586.2,2586.0,0.57785236]
[1724234866103,1.682,2586.2,2586.0,0.34304112]
[1724234879348,2.3465,2586.5,2586.0,0.34304112]
[1724234879555,1.682,2586.3,2586.0,0.34304112]
[1724234880337,0.60636508,2586.7,2586.2,0.7]
[1724234880541,1.682,2586.8,2586.3,2.52491931]
[1724234880748,1.682,2586.8,2586.5,2.4605]
[1724234881058,1.682,2587.1,2586.7,2.4605]
[1724234881429,2.3799,2587.6,2586.8,0.23517127]
[1724234881430,1.682,2586.9,2586.8,0.23517127]
[1724234881631,1.682,2586.9,2586.8,0.5747384]
[1724234881848,1.682,2586.9,2586.7,2.4605]
[1724234882035,1.682,2586.9,2586.8,0.23475587]
[1724234882354,1.682,2586.9,2586.7,2.4605]
[1724234882527,1.682,2586.9,2586.8,0.23475587]
[1724234882922,1.682,2586.9,2586.7,2.4605]
[1724234883117,1.682,2586.9,2586.8,0.55073806]
[1724234886362,1.682,2587.1,2586.8,0.55073806]
[1724234888049,1.682,2586.9,2586.8,0.55073806]
[1724234888255,1.682,2586.9,2586.8,0.23468806]
[1724234888761,1.682,2586.9,2586.8,0.23451009]
[1724234889123,1.682,2586.9,2586.6,0.7]
[1724234889320,1.682,2586.9,2586.7,0.23385691]
[1724234890237,4.0728,2586.9,2586.7,0.23385691]
[1724234890631,4.0728,2586.9,2586.3,0.7]
[1724234890825,2.3908,2586.9,2586.8,0.23384892]
[1724234891028,4.0728,2586.9,2586.3,0.7]
[1724234891228,2.3908,2587.1,2586.6,3.0651]
[1724234891488,1.682,2586.9,2586.6,3.0651]
[1724234894329,1.682,2586.9,2586.6,0.7]
[1724234894680,1.682,2586.7,2586.3,0.7]
[1724234894980,1.682,2586.5,2586.3,1.74446]
[1724234895129,1.682,2586.7,2586.3,1.74446]
[1724234895333,1.682,2586.7,2586.4,1.148906]
[1724234898799,1.682,2586.7,2586.3,0.7]
[1724234900983,1.682,2586.5,2586.3,0.7]
[1724234901856,1.682,2586.5,2586.0,3.41374112]
[1724234902256,2.4379,2586.6,2586.0,0.7]
[1724234902257,1.682,2586.3,2586.0,0.7]
[1724234902574,6.30398,2586.6,2586.0,0.7]
[1724234902575,1.682,2586.1,2586.0,0.7]
[1724234904278,1.682,2586.3,2586.0,0.7]
[1724234904990,1.682,2586.3,2586.1,0.2342438]
[1724234905486,1.682,2586.3,2586.0,0.7]
[1724234905874,1.682,2586.3,2586.1,0.2342438]
[1724234906260,1.682,2586.3,2586.0,0.7]
[1724234906568,1.682,2586.1,2586.0,0.7]
[1724234908915,2.4262,2586.0,2585.3,10.55]
[1724234909058,1.682,2585.7,2585.3,4.195]
[1724234909405,1.682,2585.7,2585.3,3.14]
[1724234911196,2.4262,2586.0,2585.3,3.14]
[1724234912192,1.682,2585.8,2585.3,3.14]
[1724234916825,1.682,2586.0,2585.6,0.7]
[1724234917124,1.682,2586.0,2585.7,2.2539]
[1724234917827,1.682,2586.0,2585.6,0.7]
[1724234918192,1.682,2585.8,2585.6,0.7]
[1724234918412,1.682,2586.0,2585.6,0.7]
[1724234919383,1.682,2586.0,2585.7,2.2759]
[1724234919691,1.682,2586.0,2585.8,0.22778095]
[1724234919886,1.682,2586.0,2585.7,2.2759]
[1724234920227,1.682,2586.0,2585.8,0.52537095]
[1724234920722,1.682,2586.0,2585.8,0.29759]
[1724234921330,1.68078928,2586.0,2585.8,0.29759]
[1724234922406,1.682,2586.2,2585.8,0.29759]
[1724234925613,1.682,2586.2,2585.9,0.22762032]
[1724234928094,2.4658,2586.4,2585.9,1.20773135]
[1724234928309,7.27,2586.6,2586.0,2.4604]
[1724234928522,1.682,2586.4,2586.1,0.22760434]
[1724234928802,1.682,2586.4,2585.9,3.44051103]
[1724234929026,1.682,2586.2,2586.0,0.3738101]
[1724234929340,1.682,2586.2,2586.0,0.60142243]
[1724234934195,1.682,2586.4,2586.0,0.60142243]
[1724234934493,1.682,2586.4,2586.1,2.3311]
[1724234934795,1.682,2586.4,2586.2,0.5208486]
[1724234935302,1.682,2586.4,2586.2,0.29325224]
[1724234935975,4.1317,2586.4,2585.9,0.7]
[1724234936289,1.682,2586.0,2585.6,8.11]
[1724234936497,3.9415,2586.0,2585.6,8.11]
[1724234936708,3.9415,2586.0,2585.7,1.03818691]
[1724234937401,1.682,2585.8,2585.7,0.22718691]
[1724234939659,2.2595,2586.0,2585.7,0.22718691]
[1724234939859,3.86654,2586.3,2585.7,0.22718691]
[1724234940108,2.42,2586.2,2585.7,0.22718691]
[1724234940878,1.682,2586.0,2585.7,0.22718691]
[1724234947914,1.682,2586.0,2585.7,2.53078691]
[1724234948275,1.682,2586.0,2585.8,0.32307869]
[1724234948530,1.682,2586.0,2585.7,2.53078691]
[1724234948751,1.682,2586.0,2585.9,0.2275779]
[1724234948875,1.682,2586.0,2585.8,0.22758589]
[1724234949088,1.682,2586.0,2585.9,0.2275779]
[1724234949544,1.682,2586.0,2585.7,2.3036]
[1724234949846,1.682,2586.2,2585.8,0.52794589]
[1724234950953,4.1164,2586.4,2585.8,0.52794589]
[1724234951241,1.682,2586.4,2585.8,0.30036]
[1724234951422,3.86638,2586.4,2585.8,0.30036]
[1724234951628,2.3119,2586.3,2585.6,0.7]
[1724234952108,2.3119,2586.3,2585.7,0.22759388]
[1724234952633,1.682,2586.1,2585.7,0.22759388]
[1724234956896,2.3343,2586.0,2585.7,0.22759388]
[1724234959787,4.0163,2586.0,2585.7,0.22759388]
[1724234967492,1.682,2585.8,2585.7,0.22759388]
[1724234967662,3.9691,2585.8,2585.7,0.22759388]
[1724234968188,3.9691,2585.8,2585.7,0.22756846]
[1724234968400,3.9691,2585.8,2585.3,0.7]
[1724234968545,2.2871,2585.8,2585.3,0.7]
[1724234968748,2.2871,2585.8,2585.4,0.22759243]
[1724234968949,1.682,2585.7,2585.4,0.22759243]
[1724234972579,4.0521,2585.5,2585.4,0.22759243]
[1724234973687,4.0521,2585.5,2585.1,7.41]
[1724234973990,1.682,2585.3,2585.1,7.41]
[1724234974192,1.682,2585.3,2585.1,8.221]
[1724234975755,1.682,2585.3,2585.1,0.811]
[1724234975955,1.682,2585.3,2585.0,0.7]
[1724234976854,1.682,2585.1,2585.0,0.7]
[1724234978264,2.3097,2585.2,2585.0,0.7]
[1724234979512,1.682,2585.3,2585.0,0.7]
[1724234980099,2.4601,2585.4,2585.1,0.22835426]
[1724234982119,4.1421,2585.4,2585.1,0.22835426]
[1724234982321,4.943075,2585.4,2585.1,0.22835426]
[1724234983832,4.1421,2585.4,2585.1,0.22835426]
[1724234984933,2.4601,2585.4,2585.1,0.22835426]
[1724234985121,4.1421,2585.4,2585.1,0.22835426]
[1724234989640,1.682,2585.4,2585.1,2.48635426]
[1724234989931,1.682,2585.4,2585.1,0.22835426]
[1724234990098,2.4257,2585.7,2585.1,0.54698969]
[1724234990302,2.4257,2585.7,2585.1,0.62434736]
[1724234990674,2.4257,2585.7,2585.1,0.54698969]
[1724234991330,1.682,2585.6,2585.1,0.54698969]
[1724234992058,1.682,2585.4,2585.1,0.54698969]